bitfinex-derivatives/quotes_BTCF0:USTF0_20241021
["timestamp","ask_amount","ask_price","bid_price","bid_amount"]
[1729495226903,0.3608,68782.0,68781.0,0.15873506]
[1729495228913,0.3608,68782.0,68781.0,0.25541506]
[1729495231312,0.3618,68782.0,68781.0,0.25941506]
[1729495232416,0.3628,68782.0,68781.0,0.26241506]
[1729495233322,0.002,68782.0,68781.0,0.10463506]
[1729495233521,0.002,68782.0,68781.0,0.20131506]
[1729495236324,0.002,68782.0,68781.0,0.10463506]
[1729495236624,0.002,68782.0,68781.0,0.20131506]
[1729495237728,0.002,68782.0,68781.0,0.19331506]
[1729495240527,0.43816,68782.0,68772.0,0.00084]
[1729495240729,0.3608,68774.0,68772.0,0.072729]
[1729495242135,0.3618,68774.0,68772.0,0.082729]
[1729495242441,0.3618,68774.0,68772.0,0.083729]
[1729495242746,0.3618,68774.0,68773.0,0.072728]
[1729495242944,0.3608,68774.0,68773.0,0.072728]
[1729495245438,0.3608,68774.0,68773.0,0.077728]
[1729495247542,0.3608,68774.0,68773.0,0.005]
[1729495247843,0.433527,68774.0,68773.0,0.005]
[1729495253154,0.433527,68774.0,68773.0,0.072728]
[1729495253354,0.3608,68774.0,68773.0,0.072728]
[1729495255147,0.3608,68774.0,68773.0,0.169368]
[1729495256347,0.3608,68774.0,68773.0,0.19498668]
[1729495259860,0.3608,68774.0,68767.0,0.09664]
[1729495260056,0.3608,68768.0,68767.0,0.09664]
[1729495260252,0.3608,68768.0,68767.0,0.19556658]
[1729495261164,0.3608,68768.0,68767.0,0.19856658]
[1729495261464,0.3608,68768.0,68767.0,0.20056658]
[1729495261757,0.3618,68768.0,68767.0,0.20356658]
[1729495261963,0.3618,68768.0,68767.0,0.177374]
[1729495262355,0.3618,68768.0,68767.0,0.175374]
[1729495262555,0.3628,68768.0,68767.0,0.084734]
[1729495268462,0.3628,68768.0,68767.0,0.076734]
[1729495268664,0.7236,68768.0,68767.0,0.076734]
[1729495268862,0.7236,68768.0,68752.0,0.13310178]
[1729495268863,1.15984,68768.0,68752.0,0.00218136]
[1729495269060,0.3608,68753.0,68752.0,0.07493136]
[1729495269265,0.3608,68753.0,68752.0,0.1015258]
[1729495270460,0.3618,68753.0,68752.0,0.1025258]
[1729495271665,0.3628,68753.0,68752.0,0.1025258]
[1729495272271,0.3628,68753.0,68752.0,0.07593136]
[1729495274474,0.3618,68753.0,68752.0,0.07493136]
[1729495274664,0.3608,68753.0,68752.0,0.07493136]
[1729495277572,0.3618,68753.0,68752.0,0.07493136]
[1729495277771,0.3628,68753.0,68752.0,0.07493136]
[1729495280566,0.3608,68753.0,68752.0,0.07493136]
[1729495280770,0.3618,68753.0,68752.0,0.07493136]
[1729495281176,0.3628,68753.0,68752.0,0.07493136]
[1729495282182,0.002,68753.0,68752.0,0.07493136]
[1729495283084,0.002,68753.0,68752.0,0.07275]
[1729495283771,0.002,68753.0,68752.0,0.06475]
[1729495284368,0.001,68753.0,68752.0,0.06475]
[1729495284575,0.002,68753.0,68752.0,0.06475]
[1729495284881,0.001,68753.0,68752.0,0.06475]
[1729495285383,0.002,68753.0,68752.0,0.06475]
[1729495288891,0.002,68753.0,68750.0,0.0263935]
[1729495289191,0.0626,68752.0,68748.0,0.072753]
[1729495289684,0.0626,68752.0,68747.0,0.0966]
[1729495289893,0.0626,68752.0,68749.0,0.072753]
[1729495290079,0.0626,68752.0,68747.0,0.0966]
[1729495290080,0.0626,68752.0,68750.0,0.072752]
[1729495291682,0.0626,68752.0,68751.0,0.072751]
[1729495291987,0.0316,68752.0,68751.0,0.072751]
[1729495293396,0.3608,68755.0,68754.0,0.072748]
[1729495295292,0.3618,68755.0,68754.0,0.072748]
[1729495298491,0.3618,68755.0,68749.0,0.02657582]
[1729495298791,0.001,68755.0,68750.0,0.3608]
[1729495298992,0.001,68755.0,68754.0,0.072748]
[1729495299203,0.001,68755.0,68754.0,0.064748]
[1729495301099,0.3608,68762.0,68761.0,0.072741]
[1729495301289,0.3608,68762.0,68761.0,0.169341]
[1729495302394,0.3638,68762.0,68761.0,0.169341]
[1729495303899,0.3668,68762.0,68761.0,0.169341]
[1729495304199,0.3638,68762.0,68761.0,0.169341]
[1729495304494,0.3658,68762.0,68761.0,0.169341]
[1729495304694,0.3628,68762.0,68761.0,0.169341]
[1729495304894,0.3608,68762.0,68761.0,0.169341]
[1729495308694,0.3608,68762.0,68761.0,0.19553816]
[1729495312099,0.3608,68762.0,68759.0,0.09656]
[1729495312286,0.3608,68762.0,68755.0,0.072746]
[1729495312490,0.3608,68762.0,68756.0,0.09656]
[1729495313395,0.3608,68762.0,68756.0,0.072745]
[1729495314292,0.3608,68762.0,68756.0,0.169305]
[1729495314691,0.3608,68762.0,68756.0,0.161305]
[1729495316588,0.3608,68761.0,68756.0,0.161305]
[1729495316998,0.3608,68761.0,68758.0,0.072743]
[1729495317499,0.3608,68761.0,68756.0,0.09656]
[1729495317889,0.3608,68761.0,68750.0,0.02612641]
[1729495318090,0.3608,68753.0,68751.0,0.09656]
[1729495318300,0.3608,68753.0,68750.0,0.072752]
[1729495318301,0.0635,68752.0,68750.0,0.072752]
[1729495318498,0.0635,68752.0,68750.0,0.169312]
[1729495318699,0.0635,68752.0,68751.0,0.072751]
[1729495319904,0.0645,68752.0,68751.0,0.072751]
[1729495320398,0.0655,68752.0,68751.0,0.072751]
[1729495323912,0.4263,68752.0,68751.0,0.09915576]
[1729495327511,0.0655,68752.0,68751.0,0.09915576]
[1729495327716,0.4263,68752.0,68751.0,0.09915576]
[1729495329902,0.4263,68752.0,68751.0,0.09115576]
[1729495335404,0.3628,68752.0,68751.0,0.09115576]
[1729495335911,0.002,68752.0,68751.0,0.09115576]
[1729495336600,0.002,68752.0,68751.0,0.52751576]
[1729495336802,0.0021821,68767.0,68766.0,0.072735]
[1729495337908,0.0101821,68767.0,68766.0,0.072735]
[1729495338899,0.0171821,68767.0,68766.0,0.072735]
[1729495339413,0.0171821,68767.0,68764.0,0.09652]
[1729495340718,0.0171821,68767.0,68764.0,0.169257]
[1729495341205,0.0171821,68767.0,68764.0,0.02662605]
[1729495341408,0.0171821,68767.0,68764.0,0.09652]
[1729495342512,0.0171821,68767.0,68764.0,0.02618307]
[1729495342724,0.0171821,68767.0,68762.0,0.09652]
[1729495342901,0.0171821,68767.0,68760.0,0.072741]
[1729495343208,0.0171821,68767.0,68762.0,0.09652]
[1729495343921,0.0171821,68767.0,68754.0,0.0646]
[1729495344111,0.0171821,68767.0,68755.0,0.09652]
[1729495344112,0.26428,68759.0,68755.0,0.09652]
[1729495344414,0.26428,68759.0,68756.0,0.072746]
[1729495344914,0.26428,68759.0,68743.0,0.3608]
[1729495344915,0.072747,68756.0,68746.0,0.072755]
[1729495345214,0.3608,68748.0,68747.0,0.072755]
[1729495345408,0.3608,68748.0,68747.0,0.064755]
[1729495346818,0.3618,68748.0,68747.0,0.065755]
[1729495347520,0.3628,68748.0,68747.0,0.065755]
[1729495349017,0.3628,68748.0,68747.0,0.162275]
[1729495350909,0.3628,68748.0,68747.0,0.18907402]
[1729495361332,0.3628,68748.0,68747.0,0.18107402]
[1729495362235,0.3628,68748.0,68747.0,0.08455402]
[1729495364027,0.3628,68748.0,68747.0,0.02779902]
[1729495371029,0.3628,68748.0,68737.0,0.00218185]
[1729495371030,0.79916,68748.0,68737.0,0.00218185]
[1729495371240,0.3608,68738.0,68737.0,0.00218185]
[1729495372341,0.433565,68738.0,68737.0,0.00218185]
[1729495372538,0.467165,68738.0,68737.0,0.00318185]
[1729495372837,0.467165,68738.0,68725.0,0.09652]
[1729495372838,0.072772,68731.0,68725.0,0.09652]
[1729495373042,0.3608,68726.0,68722.0,0.09652]
[1729495373641,0.3608,68726.0,68721.0,0.09652]
[1729495374239,0.3608,68726.0,68721.0,0.169303]
[1729495374540,0.3608,68724.0,68721.0,0.19590018]
[1729495375944,0.3628,68724.0,68721.0,0.19590018]
[1729495376148,0.3628,68724.0,68722.0,0.072781]
[1729495377746,0.3628,68724.0,68721.0,0.12311718]
[1729495377747,0.3628,68724.0,68723.0,0.072781]
[1729495378544,0.3628,68724.0,68723.0,0.169301]
[1729495379237,0.3618,68724.0,68723.0,0.169301]
[1729495379435,0.002,68724.0,68723.0,0.169301]
[1729495381751,0.002,68724.0,68723.0,0.072781]
[1729495381936,0.002,68724.0,68723.0,0.169301]
[1729495382541,0.002,68724.0,68721.0,0.02659718]
[1729495382738,0.002,68724.0,68722.0,0.09652]
[1729495383846,0.001,68724.0,68722.0,0.09652]
[1729495384047,0.002,68724.0,68722.0,0.09652]
[1729495384256,0.002,68724.0,68717.0,0.433587]
[1729495384257,0.002,68724.0,68717.0,0.45946331]
[1729495384444,0.002,68724.0,68722.0,0.09652]
[1729495385652,0.001,68724.0,68722.0,0.09652]
[1729495385856,0.002,68724.0,68722.0,0.09652]
[1729495391052,0.002,68724.0,68721.0,0.09656]
[1729495391452,0.002,68724.0,68721.0,0.08856]
[1729495394255,0.002,68724.0,68723.0,0.072781]
[1729495396660,0.001,68724.0,68723.0,0.072781]
[1729495396868,0.002,68724.0,68723.0,0.072781]
[1729495404668,0.0314,68739.0,68723.0,0.509301]
[1729495404872,0.00218238,68748.0,68735.0,0.3608]
[1729495405167,0.07276,68743.0,68736.0,0.09652]
[1729495405365,0.0637,68741.0,68736.0,0.09652]
[1729495406765,0.0647,68741.0,68737.0,0.08852]
[1729495407559,0.0657,68741.0,68737.0,0.08852]
[1729495410160,0.002,68741.0,68737.0,0.11413999]
[1729495410372,0.002,68741.0,68740.0,0.072763]
[1729495412357,0.002,68741.0,68740.0,0.433563]
[1729495413178,0.001,68741.0,68740.0,0.3608]
[1729495413472,0.001,68741.0,68740.0,0.433563]
[1729495414266,0.0329,68755.0,68740.0,0.3608]
[1729495414466,0.0329,68755.0,68750.0,0.072752]
[1729495414669,0.0329,68755.0,68751.0,0.09648]
[1729495416567,0.0399,68755.0,68751.0,0.09648]
[1729495416775,0.0469,68755.0,68751.0,0.09648]
[1729495417366,0.0399,68755.0,68751.0,0.09648]
[1729495417674,0.0469,68755.0,68751.0,0.09648]
[1729495420271,0.0469,68755.0,68751.0,0.12214563]
[1729495421476,0.0469,68755.0,68751.0,0.02566563]
[1729495421670,0.43355,68752.0,68740.0,0.3608]
[1729495421877,0.433557,68746.0,68740.0,0.3608]
[1729495422382,0.433557,68746.0,68740.0,0.3528]
[1729495422776,0.433557,68746.0,68740.0,0.37939087]
[1729495422976,0.3608,68746.0,68740.0,0.37939087]
[1729495424073,0.3608,68746.0,68740.0,0.38039087]
[1729495424475,0.3608,68746.0,68740.0,0.38239087]
[1729495424677,0.3608,68746.0,68742.0,0.07276]
[1729495426181,0.3608,68746.0,68742.0,0.07576]
[1729495426486,0.0304,68751.0,68742.0,0.003]
[1729495426881,0.0304,68751.0,68749.0,0.072753]
[1729495427680,0.0334,68751.0,68749.0,0.072753]
[1729495428685,0.0334,68751.0,68744.0,0.072758]
[1729495428887,0.0334,68751.0,68747.0,0.09644]
[1729495429184,0.0334,68751.0,68744.0,0.072758]
[1729495429488,0.0364,68751.0,68744.0,0.169198]
[1729495429985,0.0364,68751.0,68744.0,0.072758]
[1729495430184,0.0364,68751.0,68745.0,0.09644]
[1729495430581,0.0364,68751.0,68744.0,0.072758]
[1729495430786,0.0364,68751.0,68745.0,0.09644]
[1729495430979,0.0334,68751.0,68745.0,0.09644]
[1729495431187,0.0364,68751.0,68745.0,0.09644]
[1729495431688,0.072754,68748.0,68742.0,0.09644]
[1729495432084,0.0327,68747.0,68742.0,0.09644]
[1729495432395,0.0364,68751.0,68742.0,0.09644]
[1729495432585,0.0364,68751.0,68740.0,0.37939087]
[1729495432586,0.0364,68751.0,68743.0,0.169199]
[1729495432987,0.0334,68751.0,68743.0,0.09644]
[1729495433183,0.0334,68751.0,68744.0,0.072758]
[1729495433389,0.0304,68751.0,68744.0,0.072758]
[1729495433591,0.0334,68751.0,68743.0,0.09644]
[1729495434289,0.0364,68751.0,68743.0,0.169199]
[1729495435593,0.0364,68751.0,68743.0,0.09644]
[1729495435796,0.0364,68751.0,68744.0,0.072759]
[1729495435991,0.0334,68751.0,68744.0,0.072759]
[1729495436190,0.0364,68751.0,68744.0,0.072759]
[1729495437092,0.0334,68751.0,68744.0,0.072759]
[1729495437290,0.0364,68751.0,68744.0,0.072759]
[1729495437692,0.0364,68751.0,68744.0,0.064759]
[1729495438089,0.0364,68751.0,68728.0,0.36156]
[1729495438090,0.3608,68745.0,68728.0,0.36156]
[1729495438297,0.3608,68737.0,68730.0,0.072773]
[1729495438598,0.0329,68736.0,68730.0,0.072773]
[1729495439398,0.0329,68736.0,68731.0,0.072772]
[1729495439801,0.0329,68736.0,68732.0,0.09644]
[1729495439997,0.0339,68736.0,68732.0,0.09644]
[1729495440198,0.0349,68736.0,68732.0,0.09644]
[1729495440600,0.0339,68736.0,68732.0,0.09644]
[1729495441001,0.0349,68736.0,68732.0,0.09844]
[1729495442298,0.0349,68736.0,68732.0,0.171211]
[1729495442710,0.0349,68736.0,68735.0,0.072768]
[1729495443105,0.0339,68736.0,68735.0,0.072768]
[1729495443316,0.0349,68736.0,68735.0,0.072768]
[1729495443909,0.0349,68736.0,68735.0,0.075768]
[1729495445610,0.002,68736.0,68735.0,0.075768]
[1729495446518,0.002,68736.0,68735.0,0.003]
[1729495448516,0.002,68736.0,68735.0,0.02882873]
[1729495449512,0.3628,68736.0,68735.0,0.02882873]
[1729495452625,0.072779,68725.0,68724.0,0.00076]
[1729495452822,0.433579,68725.0,68715.0,0.072789]
[1729495453021,0.433579,68725.0,68714.0,0.0436259]
[1729495453022,0.0641,68724.0,68713.0,0.09644]
[1729495453217,0.13688,68724.0,68716.0,0.072788]
[1729495453516,0.13688,68724.0,68717.0,0.072787]
[1729495453721,0.0325,68723.0,68717.0,0.072787]
[1729495454717,0.3608,68719.0,68717.0,0.073787]
[1729495454921,0.3608,68719.0,68717.0,0.001]
[1729495456214,0.3608,68719.0,68714.0,0.0964]
[1729495456420,0.3608,68719.0,68714.0,0.12218677]
[1729495456626,0.3618,68719.0,68714.0,0.12218677]
[1729495456828,0.3628,68719.0,68714.0,0.12218677]
[1729495457127,0.3628,68719.0,68718.0,0.072786]
[1729495457322,0.3618,68719.0,68718.0,0.072786]
[1729495457519,0.3628,68719.0,68718.0,0.072786]
[1729495459226,0.3618,68719.0,68718.0,0.072786]
[1729495459527,0.3628,68719.0,68718.0,0.072786]
[1729495463830,0.002,68719.0,68718.0,0.072786]
[1729495464025,0.3628,68719.0,68718.0,0.072786]
[1729495464530,0.002,68719.0,68718.0,0.072786]
[1729495464718,0.3628,68719.0,68718.0,0.072786]
[1729495467029,0.002,68719.0,68718.0,0.072786]
[1729495468428,0.002,68719.0,68718.0,0.064786]
[1729495469234,0.3628,68719.0,68715.0,0.0653]
[1729495469432,0.3628,68719.0,68716.0,0.072788]
[1729495470631,0.3618,68719.0,68716.0,0.072788]
[1729495470831,0.3628,68719.0,68716.0,0.072788]
[1729495475852,0.3628,68719.0,68717.0,0.072787]
[1729495481741,0.002,68719.0,68717.0,0.072787]
[1729495483844,0.002,68719.0,68717.0,0.064787]
[1729495485642,0.002,68719.0,68714.0,0.02578677]
[1729495485942,0.002,68719.0,68713.0,0.1164169]
[1729495486143,0.002,68719.0,68714.0,0.07279]
[1729495486743,0.001,68719.0,68714.0,0.07279]
[1729495486946,0.002,68719.0,68714.0,0.07279]
[1729495488154,0.002,68719.0,68718.0,0.072786]
[1729495489144,0.001,68719.0,68718.0,0.072786]
[1729495489341,0.002,68719.0,68718.0,0.072786]
[1729495489949,0.001,68719.0,68718.0,0.072786]
[1729495490150,0.002,68719.0,68718.0,0.072786]
[1729495499154,0.002,68719.0,68718.0,0.064786]
[1729495499349,0.002,68719.0,68715.0,0.3608]
[1729495499856,0.002,68719.0,68718.0,0.072786]
[1729495501858,0.001,68719.0,68718.0,0.072786]
[1729495502061,0.002,68719.0,68718.0,0.170146]
[1729495504852,0.002,68719.0,68718.0,0.072786]
[1729495505053,0.002,68719.0,68718.0,0.170146]
[1729495507559,0.3628,68719.0,68718.0,0.072786]
[1729495507865,0.3628,68719.0,68708.0,0.12846]
[1729495508065,0.3628,68719.0,68709.0,0.072795]
[1729495508568,0.3949,68719.0,68710.0,0.09736]
[1729495508769,0.3949,68719.0,68710.0,0.170154]
[1729495509364,0.3939,68719.0,68710.0,0.170154]
[1729495509559,0.3949,68719.0,68710.0,0.170154]
[1729495509758,0.3949,68719.0,68711.0,0.09736]
[1729495510052,0.3939,68719.0,68711.0,0.09736]
[1729495510259,0.3949,68719.0,68711.0,0.09736]
[1729495511364,0.3939,68719.0,68711.0,0.09736]
[1729495511582,0.3949,68719.0,68711.0,0.09736]
[1729495512070,0.3949,68719.0,68715.0,0.072789]
[1729495512668,0.3628,68719.0,68711.0,0.09736]
[1729495512867,0.3628,68719.0,68717.0,0.072787]
[1729495513062,0.3628,68719.0,68708.0,0.3608]
[1729495513063,0.072794,68711.0,68708.0,0.3608]
[1729495513268,0.3699348,68719.0,68702.0,0.00076]
[1729495513269,0.072798,68707.0,68702.0,0.00076]
[1729495513570,0.072798,68707.0,68700.0,0.6108]
[1729495513571,0.072798,68707.0,68700.0,0.61156]
[1729495513758,0.0302,68710.0,68700.0,0.6108]
[1729495513961,0.102995,68710.0,68700.0,0.6108]
[1729495514473,0.102995,68710.0,68700.0,0.63237365]
[1729495514858,0.102995,68710.0,68700.0,0.62437365]
[1729495515161,0.102995,68710.0,68701.0,0.0974]
[1729495515362,0.103995,68710.0,68701.0,0.0974]
[1729495515566,0.0312,68710.0,68702.0,0.072803]
[1729495516472,0.0322,68710.0,68702.0,0.170043]
[1729495516965,0.0312,68710.0,68702.0,0.170043]
[1729495517166,0.0322,68710.0,68702.0,0.170043]
[1729495520475,0.0322,68710.0,68702.0,0.072803]
[1729495520679,0.0322,68710.0,68702.0,0.170043]
[1729495522868,0.0322,68710.0,68702.0,0.072803]
[1729495523068,0.0322,68710.0,68702.0,0.170043]
[1729495524169,0.0322,68710.0,68702.0,0.072803]
[1729495524473,0.0322,68710.0,68702.0,0.170043]
[1729495525974,0.0322,68710.0,68702.0,0.072803]
[1729495526179,0.0322,68710.0,68701.0,0.09724]
[1729495526884,0.072798,68707.0,68700.0,0.62513365]
[1729495527180,0.0333,68706.0,68700.0,0.72161365]
[1729495527377,0.0333,68706.0,68700.0,0.79441865]
[1729495527575,0.0333,68706.0,68701.0,0.072804]
[1729495529884,0.0343,68706.0,68701.0,0.072804]
[1729495530287,0.0353,68706.0,68701.0,0.064804]
[1729495532182,0.0353,68706.0,68700.0,0.26357365]
[1729495535085,0.0353,68706.0,68701.0,0.072803]
[1729495535482,0.3608,68702.0,68700.0,0.26357365]
[1729495537193,0.3628,68702.0,68700.0,0.26357365]
[1729495537876,0.3628,68702.0,68694.0,0.170051]
[1729495538785,0.3628,68702.0,68695.0,0.07281]
[1729495539083,0.3618,68702.0,68695.0,0.07281]
[1729495539277,0.3628,68702.0,68695.0,0.07281]
[1729495539996,0.3618,68702.0,68695.0,0.07281]
[1729495540182,0.435604,68702.0,68695.0,0.07281]
[1729495540384,0.3628,68702.0,68692.0,0.09724]
[1729495540689,0.3628,68702.0,68691.0,0.09724]
[1729495540892,0.3618,68702.0,68691.0,0.09724]
[1729495541089,0.072806,68700.0,68691.0,0.170055]
[1729495542786,0.073806,68700.0,68691.0,0.170055]
[1729495543688,0.074806,68700.0,68691.0,0.170055]
[1729495544979,0.074806,68700.0,68692.0,0.072813]
[1729495545387,0.074806,68700.0,68693.0,0.072812]
[1729495546193,0.073806,68700.0,68693.0,0.072812]
[1729495546397,0.074806,68700.0,68693.0,0.072812]
[1729495547297,0.073806,68700.0,68693.0,0.072812]
[1729495547486,0.074806,68700.0,68693.0,0.072812]
[1729495547795,0.074806,68700.0,68690.0,0.50987714]
[1729495547796,0.3608,68695.0,68690.0,0.41339714]
[1729495548095,0.3608,68695.0,68690.0,0.41263714]
[1729495548991,0.3618,68695.0,68690.0,0.41263714]
[1729495549393,0.3618,68695.0,68690.0,0.38233714]
[1729495549592,0.3628,68695.0,68690.0,0.38233714]
[1729495551890,0.072821,68685.0,68680.0,0.04358054]
[1729495552192,0.3608,68688.0,68680.0,0.072826]
[1729495552390,0.433618,68688.0,68680.0,0.072826]
[1729495552992,0.433618,68688.0,68680.0,0.169306]
[1729495553197,0.002,68685.0,68680.0,0.169306]
[1729495553707,0.001,68685.0,68680.0,0.169306]
[1729495553892,0.3618,68688.0,68680.0,0.169306]
[1729495554093,0.3628,68688.0,68680.0,0.169306]
[1729495554701,0.3628,68688.0,68681.0,0.072824]
[1729495554997,0.002,68688.0,68687.0,0.433619]
[1729495555397,0.001,68688.0,68687.0,0.433619]
[1729495556105,0.3608,68695.0,68694.0,0.072812]
[1729495558309,0.3618,68695.0,68694.0,0.072812]
[1729495558793,0.3628,68695.0,68694.0,0.072812]
[1729495560097,0.002,68695.0,68694.0,0.072812]
[1729495560699,0.002,68695.0,68694.0,0.09425099]
[1729495561496,0.002,68695.0,68694.0,0.08625099]
[1729495561899,0.3819079,68708.0,68694.0,0.38223899]
[1729495561900,0.3608,68708.0,68694.0,0.38223899]
[1729495562096,0.3608,68708.0,68707.0,0.072798]
[1729495562500,0.3608,68708.0,68695.0,0.07281]
[1729495562501,0.0323,68712.0,68710.0,0.072794]
[1729495562699,0.0323,68712.0,68700.0,0.3608]
[1729495562700,0.3608,68716.0,68715.0,0.072789]
[1729495562894,0.0304,68725.0,68709.0,0.072795]
[1729495563094,0.0304,68725.0,68722.0,0.072782]
[1729495563601,0.00218315,68730.0,68722.0,0.072782]
[1729495563806,0.00218315,68730.0,68729.0,0.072774]
[1729495565797,0.00218315,68730.0,68729.0,0.073774]
[1729495566299,0.00218315,68730.0,68729.0,0.072774]
[1729495566493,0.00318315,68730.0,68729.0,0.075774]
[1729495568106,0.00318315,68730.0,68729.0,0.073774]
[1729495568403,0.00418315,68730.0,68729.0,0.074774]
[1729495568807,0.00218315,68730.0,68729.0,0.072774]
[1729495569108,0.00318315,68730.0,68729.0,0.074774]
[1729495571808,0.00418315,68730.0,68729.0,0.074774]
[1729495573305,0.00418315,68730.0,68729.0,0.002]
[1729495573510,0.07278,68724.0,68715.0,0.36298291]
[1729495573712,0.3608,68722.0,68715.0,0.38428109]
[1729495573906,0.3608,68716.0,68708.0,0.072796]
[1729495574101,0.3608,68716.0,68709.0,0.09644]
[1729495574515,0.3608,68710.0,68709.0,0.09644]
[1729495574708,0.3608,68710.0,68709.0,0.169236]
[1729495575007,0.3608,68710.0,68709.0,0.072796]
[1729495575816,0.3628,68710.0,68709.0,0.074796]
[1729495576210,0.002,68710.0,68709.0,0.074796]
[1729495576714,0.002,68710.0,68709.0,0.171236]
[1729495583223,0.3628,68710.0,68709.0,0.002]
[1729495584618,0.3618,68710.0,68709.0,0.001]
[1729495585124,0.3618,68710.0,68709.0,0.073796]
[1729495585326,0.3608,68710.0,68709.0,0.072796]
[1729495587125,0.3618,68710.0,68709.0,0.072796]
[1729495587320,0.3628,68710.0,68709.0,0.072796]
[1729495590235,0.002,68710.0,68709.0,0.072796]
[1729495591925,0.002,68710.0,68709.0,0.064796]
[1729495592127,0.002,68710.0,68709.0,0.08555253]
[1729495603740,0.002,68710.0,68709.0,0.52219253]
[1729495603943,0.5445,68758.0,68709.0,0.52219253]
[1729495603944,0.3608,68734.0,68723.0,0.072781]
[1729495604136,0.3608,68734.0,68709.0,1.1273393]
[1729495604137,0.3608,68734.0,68731.0,0.072772]
[1729495605142,0.3678,68734.0,68731.0,0.072772]
[1729495605531,0.3678,68734.0,68732.0,0.072771]
[1729495605939,0.3678,68734.0,68733.0,0.07277]
[1729495606547,0.3758,68734.0,68733.0,0.07277]
[1729495606738,0.3768,68734.0,68733.0,0.07277]
[1729495607252,0.3768,68734.0,68733.0,0.06477]
[1729495607253,0.3608,68734.0,68733.0,0.06477]
[1729495607451,0.3768,68734.0,68733.0,0.06677]
[1729495613944,0.3768,68734.0,68733.0,0.09343194]
[1729495616549,0.3748,68734.0,68733.0,0.09343194]
[1729495617340,0.3668,68734.0,68733.0,0.09243194]
[1729495617549,0.3718,68734.0,68733.0,0.09343194]
[1729495619243,0.3718,68734.0,68733.0,0.002]
[1729495622251,1.16908,68734.0,68733.0,0.002]
[1729495622556,1.16908,68734.0,68704.0,0.40784]
[1729495622557,0.43648,68733.0,68722.0,0.0964]
[1729495622855,0.7216,68723.0,68722.0,0.0924]
[1729495623057,0.7216,68723.0,68720.0,0.072784]
[1729495623255,0.0646,68722.0,68720.0,0.072784]
[1729495624749,0.0656,68722.0,68720.0,0.079784]
[1729495625654,0.0666,68722.0,68720.0,0.013]
[1729495625858,0.072783,68721.0,68720.0,0.013]
[1729495626957,0.073783,68721.0,68720.0,0.014]
[1729495627360,0.074783,68721.0,68720.0,0.015]
[1729495628454,0.074783,68721.0,68720.0,0.007]
[1729495628958,0.797383,68721.0,68717.0,0.00218241]
[1729495629353,0.7246,68721.0,68717.0,0.00218241]
[1729495629552,0.072786,68719.0,68717.0,0.00218241]
[1729495629753,0.072793,68712.0,68706.0,0.072798]
[1729495629953,0.72580001,68721.0,68706.0,0.072798]
[1729495629954,0.3608,68707.0,68706.0,0.072798]
[1729495630355,0.4269,68707.0,68701.0,0.072803]
[1729495630553,0.4269,68707.0,68696.0,0.0964]
[1729495630755,0.4587,68707.0,68703.0,0.072802]
[1729495631155,0.4587,68707.0,68706.0,0.008]
[1729495631156,0.4597,68707.0,68706.0,0.008]
[1729495631559,0.4587,68707.0,68704.0,0.072801]
[1729495631753,0.4597,68707.0,68704.0,0.072801]
[1729495631954,0.4597,68707.0,68696.0,0.1044]
[1729495632157,0.3618,68707.0,68698.0,0.3608]
[1729495632459,0.3618,68707.0,68706.0,0.079799]
[1729495633360,0.3628,68707.0,68706.0,0.072799]
[1729495633961,0.3628,68707.0,68706.0,0.080799]
[1729495635467,0.3628,68707.0,68706.0,0.185239]
[1729495637972,0.3628,68707.0,68706.0,0.177239]
[1729495639079,0.002,68707.0,68706.0,0.177239]
[1729495643664,0.3608,68719.0,68706.0,0.613879]
[1729495643972,0.3608,68719.0,68718.0,0.072786]
[1729495645064,0.3628,68719.0,68718.0,0.072786]
[1729495645366,0.3638,68719.0,68718.0,0.072786]
[1729495645563,0.3618,68719.0,68718.0,0.072786]
[1729495645764,0.3638,68719.0,68718.0,0.072786]
[1729495647259,0.3618,68719.0,68718.0,0.080786]
[1729495647459,0.3618,68719.0,68718.0,0.087786]
[1729495647460,0.3628,68719.0,68718.0,0.087786]
[1729495647863,0.002,68719.0,68718.0,0.087786]
[1729495649962,0.002,68719.0,68718.0,0.11395305]
[1729495652167,0.002,68719.0,68718.0,0.21035305]
[1729495653380,0.002,68719.0,68718.0,0.20235305]
[1729495654377,0.002,68719.0,68718.0,0.10595305]
[1729495654680,0.002,68719.0,68718.0,0.20235305]
[1729495666983,0.074785,68719.0,68718.0,0.015]
[1729495667482,0.074785,68719.0,68709.0,0.0964]
[1729495667483,0.072787,68717.0,68709.0,0.0964]
[1729495667684,0.3608,68714.0,68708.0,0.072796]
[1729495667871,0.0305,68713.0,68709.0,0.0964]
[1729495668075,0.0621,68713.0,68709.0,0.0964]
[1729495668282,0.0621,68713.0,68710.0,0.072795]
[1729495668882,0.0621,68713.0,68710.0,0.064795]
[1729495669679,0.0631,68713.0,68711.0,0.072793]
[1729495670482,0.0631,68713.0,68710.0,0.009]
[1729495671285,0.0631,68713.0,68708.0,0.19194369]
[1729495672286,0.0631,68713.0,68710.0,0.002]
[1729495672477,0.0641,68713.0,68710.0,0.002]
[1729495672993,0.0641,68713.0,68708.0,0.19194369]
[1729495673171,0.0641,68713.0,68708.0,0.09554369]
[1729495673375,0.0641,68713.0,68709.0,0.0964]
[1729495673772,0.0631,68713.0,68709.0,0.0964]
[1729495673981,0.0641,68713.0,68710.0,0.002]